bitfinex/quotes_ETHUSD_20250602
["timestamp","ask_amount","ask_price","bid_price","bid_amount"]
[1748859348731,3.54956996,2488.2,2487.9,4.01930359]
[1748859349025,3.54956996,2488.2,2487.7,4.253]
[1748859349231,3.54956996,2488.2,2488.0,4.01928527]
[1748859349439,4.81106292,2488.4,2488.0,4.01925696]
[1748859349841,8.82971647,2488.4,2487.9,4.01935684]
[1748859350341,8.82971647,2488.4,2488.0,4.0192258]
[1748859350342,5.28014651,2488.4,2488.0,4.0192258]
[1748859350647,3.54956996,2488.3,2487.9,4.01936894]
[1748859350962,3.54956996,2488.3,2488.0,4.01920975]
[1748859351154,3.54956996,2488.3,2488.1,4.01909916]
[1748859351627,3.54956996,2488.3,2488.0,4.0192053]
[1748859351829,3.54956996,2488.3,2488.1,4.01910805]
[1748859352034,3.54956996,2488.3,2488.0,4.01921634]
[1748859352431,3.54956996,2488.3,2487.6,4.66011405]
[1748859352729,3.54956996,2488.3,2487.9,4.01931406]
[1748859352931,3.54956996,2488.3,2487.9,4.01933977]
[1748859353714,3.54956996,2488.3,2488.0,4.0192044]
[1748859354018,3.54956996,2488.3,2488.0,4.01928437]
[1748859355016,3.54956996,2488.3,2487.8,4.01953812]
[1748859355217,3.54956996,2488.3,2488.0,4.01928951]
[1748859356233,3.54956996,2488.3,2487.9,4.01935403]
[1748859356621,3.54956996,2488.3,2488.0,4.01928215]
[1748859356818,1.26149296,2488.4,2487.9,0.04019027]
[1748859357022,0.795,2488.5,2487.9,0.04019027]
[1748859357023,4.34456996,2488.5,2488.2,4.01889191]
[1748859357236,0.795,2488.5,2488.2,4.01885649]
[1748859357780,4.34456996,2488.5,2488.2,4.01885649]
[1748859358586,4.34456996,2488.5,2488.1,4.01903225]
[1748859359297,3.54956996,2488.3,2488.1,4.01903225]
[1748859360297,3.54956996,2488.3,2488.0,4.01921758]
[1748859360499,0.795,2488.5,2487.9,4.01939275]
[1748859360500,3.54956996,2488.1,2487.9,4.01939275]
[1748859360696,3.54956996,2488.1,2487.8,13.16952292]
[1748859360932,4.31226996,2488.1,2487.9,4.01942646]
[1748859361563,4.31226996,2488.1,2487.8,12.01952123]
[1748859362164,4.31226996,2488.1,2487.8,12.01955493]
[1748859362699,3.54956996,2487.9,2487.7,1.15]
[1748859362996,3.54956996,2487.9,2487.3,5.17034055]
[1748859362997,0.7927,2487.7,2487.3,5.17034055]
[1748859363162,3.54956996,2487.5,2487.3,1.15]
[1748859363598,3.54956996,2487.5,2487.3,5.17042137]
[1748859364171,0.7927,2487.4,2487.1,0.01]
[1748859364372,4.38577531,2487.5,2487.1,0.01]
[1748859364373,4.34226996,2487.2,2487.1,0.01]
[1748859364571,8.36285535,2487.2,2487.1,0.01]
[1748859364972,9.06128539,2487.2,2487.1,0.01]
[1748859365213,12.61085535,2487.2,2487.1,0.01]
[1748859365525,14.27396963,2487.2,2487.1,0.01]
[1748859366562,10.25338424,2487.2,2487.1,0.01]
[1748859366765,14.27396963,2487.2,2487.1,0.01]
[1748859366999,6.00538424,2487.2,2487.1,0.01]
[1748859368077,10.02596963,2487.2,2487.1,0.01]
[1748859368268,6.00538424,2487.2,2487.1,0.01]
[1748859368665,4.34226996,2487.2,2487.1,0.01]
[1748859368972,0.7543,2487.4,2487.1,0.01]
[1748859369300,0.7543,2487.4,2487.3,4.02042375]
[1748859369507,0.7543,2487.4,2487.1,4.03067798]
[1748859369865,4.30386996,2487.4,2487.1,0.01]
[1748859370603,5.64469694,2487.4,2487.1,0.01]
[1748859370792,3.54956996,2487.2,2487.1,0.01]
[1748859372293,4.0212368,2486.8,2486.3,4.02190771]
[1748859372509,3.54956996,2486.4,2486.2,4.02210363]
[1748859372803,3.54956996,2486.4,2486.1,8.01]
[1748859373009,3.54956996,2486.4,2486.2,4.02213183]
[1748859373529,3.95530061,2486.6,2486.3,4.02196706]
[1748859374411,7.50487057,2486.6,2486.2,4.02218565]
[1748859375214,3.54956996,2486.4,2486.1,0.01]
[1748859375428,3.54956996,2486.4,2486.1,1.161]
[1748859375776,3.54956996,2486.4,2486.2,4.02217917]
[1748859376422,3.54956996,2486.4,2486.1,1.161]
[1748859376594,4.32886996,2486.4,2486.1,1.161]
[1748859376922,6.11852903,2486.4,2486.1,1.161]
[1748859377523,6.11852903,2486.4,2486.1,5.1833569]
[1748859378328,6.11852903,2486.4,2486.1,4.0323569]
[1748859379604,6.11852903,2486.4,2486.1,0.01]
[1748859379799,6.11852903,2486.4,2486.1,4.03234559]
[1748859381824,1.43882694,2486.3,2486.1,0.01]
[1748859382122,3.54956996,2486.2,2486.1,0.01]
[1748859383550,3.54956996,2486.2,2483.2,0.51568116]
[1748859383551,0.7692,2486.1,2483.2,0.51568116]
[1748859383749,0.7692,2486.1,2482.1,4.76]
[1748859383750,3.54956996,2484.7,2482.4,4.371]
[1748859383922,6.04675031,2482.5,2482.4,0.141]
[1748859384236,6.04675031,2482.5,2481.1,0.01]
[1748859384237,4.02933354,2481.8,2481.1,0.01]
[1748859384542,7.09913992,2481.2,2479.5,5.55297262]
[1748859384692,3.54956996,2480.2,2479.5,1.52]
[1748859384904,3.54956996,2480.2,2479.1,0.01]
[1748859384905,11.13107282,2480.2,2479.1,0.01]
[1748859385132,11.51437452,2480.2,2479.1,1.53]
[1748859385436,0.3833017,2480.2,2479.1,1.53]
[1748859385840,4.4152346,2480.2,2479.1,0.01]
[1748859386005,5.9660443,2480.2,2479.1,0.01]
[1748859386198,4.03293773,2479.6,2479.1,0.01]
[1748859386420,7.11067811,2479.4,2479.1,0.01]
[1748859386620,0.37835893,2479.3,2479.1,0.01]
[1748859387637,0.37835893,2479.2,2479.1,0.01]
[1748859388942,0.37835893,2479.2,2479.1,1.586]
[1748859390156,0.46666632,2479.7,2479.1,1.586]
[1748859390362,0.373302,2479.6,2479.2,4.63574317]
[1748859390523,0.46666632,2480.0,2479.3,4.924]
[1748859390727,0.37270471,2479.9,2479.4,0.04032545]
[1748859391052,7.11067811,2479.7,2479.2,0.56198226]
[1748859391263,7.11067811,2479.7,2479.3,6.496]
[1748859391610,0.8065,2480.2,2479.3,6.496]
[1748859391977,0.3722463,2480.1,2479.4,10.56755203]
[1748859392132,0.3722354,2480.0,2479.4,6.494]
[1748859392337,11.14265376,2480.2,2479.4,6.494]
[1748859392536,0.37223834,2480.1,2479.4,7.54673519]
[1748859392870,0.37223834,2480.1,2479.4,1.05273519]
[1748859393067,0.37223834,2480.1,2479.5,6.486]
[1748859393427,7.11067811,2480.2,2479.5,6.486]
[1748859393762,4.0318398,2480.3,2479.5,6.486]
[1748859393921,7.11067811,2480.1,2479.5,6.486]
[1748859394126,8.0,2480.0,2479.5,6.486]
[1748859394573,4.03128716,2480.6,2479.6,4.03290853]
[1748859394862,0.3713917,2480.7,2479.8,4.03257738]
[1748859395175,8.0,2480.5,2479.8,4.0325286]
[1748859395629,0.7719,2481.1,2479.9,12.73731245]
[1748859395822,0.7719,2481.1,2480.2,4.03185724]
[1748859395823,7.11067811,2480.8,2480.2,4.03185724]
[1748859396023,7.11067811,2480.8,2480.2,4.0319329]
[1748859396265,7.11067811,2480.8,2480.1,4.03203481]
[1748859396528,7.11067811,2480.8,2480.2,4.03187616]
[1748859396762,7.11067811,2480.8,2480.2,4.03181266]
[1748859396939,7.11067811,2480.8,2480.2,4.03190111]
[1748859397347,7.11067811,2480.8,2480.2,4.03186476]
[1748859397548,7.11067811,2480.8,2480.4,4.03159699]
[1748859397748,7.11067811,2480.8,2480.5,6.463]
[1748859398080,0.33547811,2481.0,2480.5,6.463]
[1748859398236,8.0,2480.8,2480.5,6.463]
[1748859398639,8.0,2480.8,2480.5,10.53475526]
[1748859398878,8.0,2480.8,2480.5,10.49435638]
[1748859399177,8.0,2480.8,2480.5,10.49439811]
[1748859399354,8.0,2480.8,2480.5,10.49443862]
[1748859399554,8.0,2480.8,2480.5,6.463]
[1748859399750,8.0,2480.8,2480.6,4.03127985]
[1748859399949,8.0,2480.8,2480.6,4.03120281]
[1748859400349,8.0,2481.3,2480.7,4.03112024]
[1748859400555,8.0,2481.3,2480.6,4.03125132]
[1748859400556,15.11067811,2481.1,2480.6,4.03125132]
[1748859401101,15.11067811,2481.1,2480.7,4.03110595]
[1748859401399,15.11067811,2481.1,2480.8,6.441]
[1748859401695,8.37208416,2481.0,2480.8,6.441]
[1748859401903,8.0,2481.0,2480.8,6.441]
[1748859402240,8.0,2481.0,2480.8,10.47190003]
[1748859402586,8.8,2481.2,2480.8,6.441]
[1748859402747,0.37259692,2481.1,2481.0,4.0306328]
[1748859402950,0.37259692,2481.3,2481.0,4.0306328]
[1748859403147,4.02991398,2481.5,2480.9,4.03070948]
[1748859403345,0.37255844,2481.4,2481.0,4.03055361]
[1748859403565,0.37255844,2481.3,2480.2,4.0319329]
[1748859403780,0.37255844,2481.2,2481.0,4.03061038]
[1748859403980,8.0,2481.3,2481.1,8.88146612]
[1748859404279,0.37299409,2481.2,2481.1,8.88147035]
[1748859404484,0.37299409,2481.2,2481.1,6.375]
[1748859404826,0.37348272,2481.2,2481.1,6.375]
[1748859405101,0.37348272,2481.2,2481.1,10.40547035]
[1748859405417,0.46685341,2481.7,2481.5,4.02982067]
[1748859405718,0.63247121,2481.9,2481.8,4.02933354]
[1748859406003,0.38392353,2481.9,2481.8,8.87533354]
[1748859406210,0.38392353,2481.9,2481.8,4.846]
[1748859406377,0.38392353,2481.9,2481.8,8.87533354]
[1748859406982,0.38392353,2481.9,2481.8,4.846]
[1748859407196,0.38392353,2481.9,2481.8,8.87533354]
[1748859407408,0.38451971,2481.9,2481.8,8.87533354]
[1748859407604,0.85266934,2481.9,2481.8,4.846]
[1748859408093,0.85266934,2481.9,2481.6,4.02954161]
[1748859408296,0.84266934,2481.8,2481.7,6.354]
[1748859408609,0.37451971,2481.8,2481.7,6.354]
[1748859409389,0.84447066,2481.8,2481.7,10.38349591]
[1748859409615,0.01,2481.9,2481.8,4.02933354]
[1748859409931,0.38682336,2481.9,2481.8,4.02933354]
[1748859410105,0.38682336,2481.9,2481.5,4.02972772]
[1748859410409,0.01,2481.9,2481.8,6.344]
[1748859410595,0.38785098,2481.9,2481.8,5.44939226]
[1748859411898,0.38785098,2481.9,2481.8,9.4787258]
[1748859412516,0.38785098,2481.9,2481.8,7.54466853]
[1748859412723,1.65620694,2481.9,2481.8,7.54466853]
[1748859413085,1.65620694,2481.9,2481.8,3.51533499]
[1748859413288,1.4738684,2481.9,2481.8,3.51533499]
[1748859413589,0.39050048,2481.9,2481.8,7.54466853]
[1748859413800,0.58618107,2481.9,2481.8,7.54466853]
[1748859413997,0.58618107,2481.9,2481.8,3.51533499]
[1748859414196,0.58621058,2481.9,2481.8,7.54466853]
[1748859414396,0.58621242,2481.9,2481.8,7.54466853]
[1748859414598,0.58622863,2481.9,2481.5,4.02980277]
[1748859414815,1.85098107,2481.8,2481.7,4.02948084]
[1748859415058,1.8509868,2481.8,2481.7,4.02948084]
[1748859415200,1.85119018,2481.8,2481.7,4.02948084]
[1748859415404,1.85119202,2481.8,2481.7,4.02948084]
[1748859415634,1.85120184,2481.8,2481.7,4.02948084]
[1748859415847,0.5764494,2481.8,2481.7,4.02948084]
[1748859416008,1.85120184,2481.8,2481.7,4.02948084]
[1748859416209,0.5764494,2481.8,2481.7,4.02948084]
[1748859416441,0.38050048,2481.8,2481.7,4.02948084]
[1748859416642,0.57660531,2481.8,2481.7,4.02948084]
[1748859416937,0.7962,2481.7,2481.0,1.523]
[1748859417149,1.27520592,2481.5,2481.4,4.02998307]
[1748859417301,1.27520592,2481.6,2481.5,4.02982067]
[1748859417505,1.85392091,2481.6,2481.5,4.02982067]
[1748859417705,1.85392189,2481.6,2481.5,4.02982067]
[1748859417953,1.85392189,2481.6,2481.5,10.33082067]
[1748859418505,1.85392189,2481.6,2481.5,6.301]
[1748859418750,1.85401765,2481.6,2481.5,10.33082067]
[1748859418942,1.65775061,2481.6,2481.5,10.33082067]
[1748859419241,0.57876481,2481.6,2481.5,10.33082067]
[1748859420537,0.38254469,2481.6,2481.5,10.33082067]
[1748859420730,0.5807474,2481.6,2481.5,8.8801797]
[1748859421054,0.58073729,2481.6,2481.5,8.8801797]
[1748859421204,0.38336911,2481.6,2481.5,10.17119523]
[1748859421407,0.5807504,2481.6,2481.5,10.17119523]
[1748859421618,0.38336911,2481.6,2481.5,10.92519523]
[1748859421817,0.48229913,2481.6,2481.5,18.92519523]
[1748859422049,0.48229913,2481.6,2481.5,19.47519523]
[1748859422445,0.01,2481.9,2481.8,4.02933354]
[1748859422746,0.19062553,2481.9,2481.8,4.02933354]
[1748859422914,0.19061785,2481.9,2481.8,4.02933354]
[1748859423116,0.01,2481.9,2481.8,4.02933354]
[1748859423417,0.19063343,2481.9,2481.8,4.06962119]
[1748859423746,0.19063343,2481.9,2481.8,4.02933354]
[1748859423938,0.19063189,2481.9,2481.8,4.02933354]
[1748859424131,0.19063189,2481.9,2481.8,8.78333354]
[1748859424132,0.01,2481.9,2481.8,8.78333354]
[1748859424656,0.01,2481.9,2481.8,10.08606506]
[1748859426259,0.01,2481.9,2481.8,8.77633354]
[1748859427339,0.01,2481.9,2481.8,4.02933354]
[1748859427537,0.19054878,2481.9,2481.8,10.24233354]
[1748859428063,0.01,2481.9,2481.8,10.24233354]
[1748859430082,0.1905099,2481.9,2481.8,4.02933354]
[1748859430263,0.67059259,2481.9,2481.8,4.02933354]
[1748859430468,0.19075711,2481.9,2481.8,4.02933354]
[1748859430638,0.67160427,2481.9,2481.8,4.02933354]
[1748859430839,0.67156881,2481.9,2481.8,4.02933354]
[1748859431251,0.19072345,2481.9,2481.8,4.02933354]
[1748859431568,0.67157544,2481.9,2481.8,4.06962178]
[1748859431865,0.01,2481.9,2481.8,4.02933354]
[1748859432032,0.01,2481.9,2481.8,8.76233354]
[1748859432677,0.01,2481.9,2481.8,9.52013354]
[1748859432968,0.01,2481.9,2481.8,11.42505922]
[1748859433967,0.39523598,2481.9,2481.8,11.42505922]
[1748859434802,0.39543057,2481.9,2481.8,6.69205922]
[1748859435007,0.39543057,2481.9,2481.8,9.50513354]
[1748859435891,0.57610367,2481.9,2481.6,4.02961168]
[1748859436209,1.20873758,2481.8,2481.7,4.02949591]
[1748859436367,0.38543057,2481.8,2481.7,4.02949591]
[1748859436570,0.56606771,2481.8,2481.7,4.02949591]
[1748859436789,0.38543057,2481.8,2481.7,4.02949591]
[1748859436990,1.20872824,2481.8,2481.7,4.02949591]
[1748859437198,1.20874248,2481.8,2481.7,4.02949591]
[1748859437471,0.56607362,2481.8,2481.7,4.02949591]
[1748859437885,0.38543057,2481.8,2481.7,8.79378792]
[1748859438088,0.38543057,2481.8,2481.7,8.75349591]
[1748859438483,0.01,2481.9,2481.8,4.02933354]
[1748859438705,0.39552968,2481.9,2481.8,4.02933354]
[1748859439105,0.39552968,2481.9,2481.8,4.06962233]
[1748859439411,0.39552968,2481.9,2481.8,4.02933354]
[1748859439715,0.39552968,2481.9,2481.8,4.0696212]
[1748859440271,0.39552968,2481.9,2481.8,5.43007291]
[1748859440272,0.01,2481.9,2481.8,5.43007291]
[1748859440715,0.01,2481.9,2481.8,4.02933354]
[1748859441076,0.01,2481.9,2481.8,10.21433354]
[1748859441377,0.01,2481.9,2481.8,10.21233354]
[1748859441585,0.3955516,2481.9,2481.8,10.21033354]
[1748859441982,0.3955516,2481.9,2481.8,4.02933354]
[1748859442196,0.3955516,2481.9,2481.8,5.49933354]
[1748859442393,0.39557377,2481.9,2481.7,4.02941439]
[1748859442694,0.01,2481.9,2481.8,4.02933354]
[1748859442904,0.39559791,2481.9,2481.8,4.02933354]
[1748859443707,0.01,2481.9,2481.8,4.02933354]
[1748859444173,0.395604,2481.9,2481.8,4.02933354]
[1748859446006,1.20354846,2481.9,2481.5,1.419]
[1748859446208,0.385654,2481.8,2481.7,4.02940482]
[1748859450018,0.01,2481.9,2481.8,4.02933354]
[1748859450217,0.39570844,2481.9,2481.8,4.02933354]
[1748859450624,0.39571592,2481.9,2481.8,4.02933354]
[1748859451320,0.01,2481.9,2481.8,4.02933354]
[1748859451520,0.39571289,2481.9,2481.8,4.02933354]
[1748859452792,0.01,2481.9,2481.8,4.02933354]
[1748859452995,0.01,2481.9,2481.8,8.73362024]
[1748859453198,0.01,2481.9,2481.8,10.04565605]
[1748859453408,0.01,2481.9,2481.8,8.69333354]
[1748859457802,0.01,2481.9,2481.8,8.67033354]
[1748859458938,0.8313,2482.6,2482.5,4.02819738]
[1748859459139,1.21697644,2482.6,2482.5,4.02819738]
[1748859460531,1.21697644,2482.6,2482.2,6.055]
[1748859460532,5.24513121,2482.6,2482.1,1.419]
[1748859460832,6.85764055,2482.4,2482.2,4.02866535]
[1748859461007,0.38567644,2482.3,2481.8,4.0292685]
[1748859461342,0.38563793,2482.2,2481.9,4.02908205]
[1748859461642,0.38565291,2482.1,2481.8,5.44825382]
[1748859461946,12.09637559,2482.4,2481.8,5.44825382]
[1748859461947,8.06791773,2482.4,2482.1,4.02883435]
[1748859462115,0.385641,2482.3,2482.1,4.02883435]
[1748859462461,0.385641,2482.2,2482.1,4.02883435]
[1748859462817,0.385641,2482.2,2482.0,4.02894612]
[1748859463008,0.385641,2482.1,2482.0,4.02894612]
[1748859463625,0.385641,2482.1,2481.8,4.02926548]
[1748859463828,1.2963919,2482.3,2481.7,1.45929026]
[1748859464033,1.60392033,2482.2,2481.7,1.45929026]
[1748859464255,0.38567403,2482.1,2481.7,1.45929026]
[1748859464456,1.2182463,2482.2,2481.9,4.02910164]
[1748859464667,0.38569539,2482.1,2481.9,4.02910164]
[1748859464961,1.2182463,2482.2,2482.0,4.02891171]
[1748859465256,0.38569565,2482.1,2482.0,4.02891171]
[1748859465441,6.85764055,2482.4,2482.2,4.02856234]
[1748859465644,0.385715,2482.3,2482.2,4.02856234]
[1748859466365,0.385715,2482.3,2482.1,4.02880723]
[1748859466524,0.385715,2482.2,2482.1,4.02880723]
[1748859468174,0.385715,2482.2,2482.1,4.06909551]
[1748859468350,0.01,2482.9,2482.8,4.02771064]
[1748859468658,0.39562763,2482.9,2482.8,4.02771064]
[1748859469422,0.01,2482.9,2482.8,4.02771064]
[1748859469628,0.39556579,2482.9,2482.8,4.02771064]
[1748859470169,0.01,2482.9,2482.8,4.02771064]
[1748859480273,0.01,2482.9,2482.6,5.39496396]
[1748859480613,7.67234055,2482.7,2482.4,4.02828012]
[1748859481183,7.67234055,2482.7,2482.3,4.02843251]
[1748859481587,7.67234055,2482.7,2482.4,4.02835742]
[1748859481904,0.3850961,2482.6,2482.4,4.02835742]
[1748859482286,0.3850961,2482.6,2482.3,4.02844029]
[1748859482470,4.02823557,2482.5,2482.1,1.366]
[1748859482673,6.85764055,2482.4,2482.2,4.02864401]
[1748859482879,6.85764055,2482.4,2482.3,4.02852193]
[1748859483178,0.8147,2482.7,2482.6,4.02803512]
[1748859483375,1.19990014,2482.7,2482.6,4.02803512]
[1748859483621,0.8147,2482.7,2482.5,4.02810322]
[1748859483789,2.57029461,2482.7,2482.1,1.366]
[1748859483992,0.38521174,2482.6,2482.3,4.02837374]
[1748859484192,2.57029461,2482.7,2482.4,4.02832206]
[1748859484527,0.38524906,2482.6,2482.5,4.02819738]
[1748859484711,0.38525913,2482.6,2482.4,4.02826007]
[1748859484880,2.74642121,2482.7,2482.4,4.02826007]
[1748859485080,0.38525669,2482.6,2482.4,4.02826007]
[1748859485282,2.74642121,2482.7,2482.4,4.02826007]
[1748859485543,0.38526981,2482.6,2482.4,4.02826007]
[1748859485831,0.38526981,2482.6,2482.2,4.02862513]
[1748859485832,2.74643425,2482.7,2482.3,4.02843197]
[1748859485982,7.95884978,2482.6,2482.2,4.02855965]
[1748859486178,0.38526904,2482.5,2482.2,4.02855965]
[1748859486378,12.28268972,2482.6,2482.2,4.02855965]
[1748859486594,0.38530397,2482.5,2482.2,4.02855965]
[1748859486794,1.9266252,2482.5,2482.2,4.02855965]
[1748859486989,1.9266252,2482.5,2482.3,4.02844749]
[1748859487235,1.9266252,2482.5,2481.9,5.899]
[1748859487433,5.42505339,2482.6,2482.4,4.02835965]
[1748859487586,0.38529977,2482.5,2482.3,4.02843397]
[1748859487915,5.42504343,2482.6,2482.2,4.02863025]
[1748859488215,0.38531392,2482.5,2482.2,4.02863025]
[1748859488417,1.75106379,2482.5,2482.3,4.02850824]
[1748859488621,1.75106379,2482.5,2481.9,1.366]
[1748859488779,1.75106379,2482.5,2482.1,4.0287778]
[1748859488976,7.24296079,2482.4,2482.1,4.0287778]
[1748859489178,6.85764055,2482.4,2482.1,4.0287778]
[1748859489378,8.66382635,2482.4,2482.2,4.02865741]
[1748859489594,8.66382635,2482.4,2482.2,4.02865468]
[1748859490114,8.66382635,2482.4,2481.8,4.02933354]
[1748859490320,8.66382635,2482.4,2482.1,4.02871104]
[1748859490526,8.66382635,2482.4,2482.2,4.02864645]
[1748859491093,8.66382635,2482.4,2482.1,4.02876257]
[1748859491289,10.98454438,2482.3,2481.9,4.02909107]
[1748859491545,0.38534334,2482.2,2482.0,4.02900886]
[1748859491747,0.64209855,2482.7,2481.7,8.701]
[1748859491748,1.23247917,2482.6,2482.4,4.02835965]
[1748859491908,0.56134465,2482.5,2481.8,4.02933354]
[1748859492229,7.41898849,2482.4,2482.2,4.02861404]
[1748859492435,0.38529416,2482.3,2481.7,13.215]
[1748859492595,0.17605378,2482.4,2482.1,4.02875058]
[1748859492794,0.38530945,2482.3,2482.1,4.02875058]
[1748859493034,0.38531738,2482.2,2482.1,4.02875058]
[1748859493196,0.38531738,2482.3,2482.1,4.02875058]
[1748859493396,0.38531738,2482.2,2482.1,4.02875058]
[1748859493598,0.38531738,2482.3,2482.2,4.02868423]
[1748859494434,0.38531738,2482.3,2482.1,4.02874954]
[1748859494614,0.38531738,2482.2,2482.1,4.02874954]
[1748859494823,0.38531738,2482.3,2482.1,4.02874954]
[1748859494992,0.38531738,2482.2,2482.1,4.02874954]
[1748859495196,0.38532239,2482.3,2482.1,4.02874954]
[1748859495432,0.38532042,2482.2,2481.9,4.02908175]
[1748859495654,0.68204774,2482.3,2481.9,4.02908175]
[1748859495935,0.38533658,2482.2,2482.0,4.02890582]
[1748859496139,8.78079161,2482.4,2482.0,4.02890582]
[1748859496297,0.38531135,2482.3,2481.8,4.02930604]
[1748859496491,0.38531135,2482.2,2481.9,4.02915246]
[1748859496733,12.80920703,2482.4,2481.8,4.02929973]
[1748859496937,2.52027359,2482.3,2481.9,4.02907138]
[1748859497107,0.38532631,2482.2,2481.9,4.02907138]
[1748859497296,4.501,2482.2,2481.9,4.02907138]
[1748859497497,7.24295605,2482.1,2481.9,4.02915393]
[1748859497739,7.62244055,2482.1,2481.7,4.02934131]
[1748859497956,7.62244055,2482.1,2481.6,4.02959009]
[1748859497957,7.62244055,2482.1,2481.9,4.02909261]
[1748859498811,7.62244055,2482.1,2482.0,4.02900886]
[1748859498995,8.0076769,2482.1,2482.0,4.02900886]
[1748859499200,0.7774,2482.4,2482.3,4.02852193]
[1748859499396,0.38518665,2482.4,2482.3,4.02852193]
[1748859499748,0.38518665,2482.5,2482.3,4.02852193]
[1748859499902,0.38518665,2482.4,2482.3,4.02852193]
[1748859500103,0.38518665,2482.5,2482.4,4.02835965]
[1748859500841,0.38518665,2482.6,2482.5,4.02819738]
[1748859501202,0.38518665,2482.6,2482.1,1.314]
[1748859501447,0.38524626,2482.5,2482.2,4.02858676]
[1748859501759,4.61103958,2482.6,2482.1,4.02876081]
[1748859501933,0.38525756,2482.5,2482.2,4.02865563]
[1748859502130,0.5829655,2482.6,2482.2,4.02865563]
[1748859502440,0.38528435,2482.5,2482.3,4.02850946]
[1748859502614,0.5829655,2482.6,2482.3,4.02850946]
[1748859502836,0.38531132,2482.5,2482.2,4.02854599]
[1748859503037,0.5829655,2482.6,2482.3,4.02851427]
[1748859503267,0.38531438,2482.5,2482.3,4.02851427]
[1748859503431,7.81107002,2482.7,2482.4,4.02835965]
[1748859503628,0.38536289,2482.6,2482.4,4.02835965]
[1748859503832,4.02940346,2481.8,2481.3,4.03006871]
[1748859504085,6.85764055,2481.5,2481.4,4.02998307]
[1748859504364,4.484,2481.8,2481.7,4.02949591]
[1748859504566,0.17598384,2481.9,2481.8,4.02926071]
[1748859504765,0.94038858,2482.0,2481.9,4.02917119]
[1748859504971,0.94038858,2482.0,2481.8,4.02930197]
[1748859505180,0.38549014,2481.9,2481.8,4.02933262]
[1748859505747,0.38549014,2481.9,2481.4,1.314]
[1748859505748,4.66197321,2482.2,2481.7,4.79718071]
[1748859505955,0.38545983,2482.1,2481.9,4.02905703]
[1748859506288,0.38541803,2482.2,2482.1,4.02884654]
[1748859506492,0.3854803,2482.2,2482.1,4.02884654]
[1748859507497,0.01,2482.9,2482.1,4.02884654]
[1748859507498,0.3854803,2482.3,2482.2,4.02868423]
[1748859507664,0.65209855,2482.9,2482.2,4.02868423]
[1748859507665,0.48185037,2482.8,2482.6,4.02803512]
[1748859507994,0.38551271,2482.7,2482.6,4.02803512]
[1748859508153,0.56157841,2482.7,2482.5,4.02812432]
[1748859508349,0.56157841,2482.6,2482.2,2.1117]
[1748859508553,0.38551271,2482.5,2482.4,4.02827935]
[1748859509475,0.01,2482.9,2482.2,2.1117]
[1748859509767,0.38575982,2482.8,2482.7,4.02787288]
[1748859510114,0.01,2482.9,2482.8,4.02771064]
[1748859510383,0.39571753,2482.9,2482.8,4.02771064]
[1748859510607,0.39571753,2482.9,2482.7,4.02778705]
[1748859510814,0.01,2482.9,2482.8,4.02771064]
[1748859510951,0.395601,2482.9,2482.7,4.02781327]
[1748859511148,0.01,2482.9,2482.8,4.02771064]
[1748859511353,0.39551442,2482.9,2482.7,4.02778581]
[1748859511554,0.01,2482.9,2482.6,5.34194966]
[1748859513088,0.01,2482.9,2482.7,4.0277886]
[1748859513291,0.01,2482.9,2482.8,4.02771064]
[1748859513493,0.39537943,2482.9,2482.7,4.02778281]
[1748859513701,0.7895,2480.4,2479.2,0.02102635]
[1748859514000,3.54126076,2480.4,2479.1,0.01]
[1748859514296,2.05139854,2480.3,2479.1,0.01]
[1748859514496,6.85764055,2479.7,2479.1,0.01]
[1748859514652,6.85764055,2479.7,2479.2,4.03341575]
[1748859514862,6.85764055,2479.7,2479.3,0.04033151]
[1748859515076,1.571976,2480.2,2479.4,1.646]
[1748859515301,1.571976,2480.2,2479.5,0.61229853]
[1748859515302,0.33490361,2480.2,2479.5,0.61229853]
[1748859515596,0.33490361,2480.2,2479.5,4.03307023]
[1748859515771,0.33490361,2480.2,2479.6,4.03281024]
[1748859516168,0.38336164,2480.3,2479.7,4.03271899]
[1748859516362,0.38336164,2480.3,2479.3,16.704]
[1748859516558,0.38336164,2480.3,2479.7,4.03261983]
[1748859516881,7.93717011,2480.6,2479.8,4.43572056]
[1748859517202,0.38335211,2480.5,2479.8,4.43580021]
[1748859517408,0.38335211,2480.5,2479.8,0.40326198]
[1748859517898,0.38305312,2480.5,2479.8,0.40326198]
[1748859518453,0.38305312,2480.5,2479.7,4.03260799]
[1748859518857,0.38305312,2480.5,2479.8,1.646]
[1748859519087,1.0,2480.3,2479.8,1.646]
[1748859522077,1.0,2480.3,2479.9,4.03233417]
[1748859522586,1.0,2480.3,2479.8,5.67851106]
[1748859523592,1.0,2480.3,2480.0,4.03222902]
[1748859523786,1.0,2480.3,2479.9,9.0543552]
[1748859524189,1.0,2480.3,2479.9,5.022]
[1748859524795,1.0,2480.3,2479.3,8.704]
[1748859524995,1.0,2480.3,2479.9,4.03233447]
[1748859525203,1.0,2480.3,2479.9,9.04433447]
[1748859525499,1.0,2480.3,2479.9,9.0443229]
[1748859526000,1.0,2480.3,2479.8,1.646]
[1748859526323,1.0,2480.3,2480.1,4.03208186]
[1748859526468,7.10627011,2480.5,2480.2,4.03190986]
[1748859527007,4.03105673,2480.8,2480.0,4.03222721]
[1748859527205,0.8199,2481.2,2480.3,5.003]
[1748859527514,7.92617011,2481.2,2480.8,4.0308884]
[1748859527805,7.92617011,2481.2,2480.1,0.7808]
[1748859527806,7.10627011,2480.9,2480.2,4.0319329]
[1748859528006,7.10627011,2480.9,2480.6,9.03426325]
[1748859528919,7.10627011,2480.9,2480.7,1.646]
[1748859529067,7.10627011,2480.9,2480.8,1.646]
[1748859529068,8.21994551,2480.9,2480.8,1.646]
[1748859529262,7.10627011,2480.9,2480.8,1.646]
[1748859530730,0.7982,2481.6,2481.3,4.03004588]
[1748859530866,0.7982,2481.6,2481.1,4.99]
[1748859531062,0.38168444,2481.7,2481.3,4.03003353]
[1748859531310,1.6151471,2481.7,2481.4,4.02997454]
[1748859531627,1.6151471,2481.7,2481.3,4.03003667]
[1748859531905,1.61524945,2481.7,2481.2,4.03018265]
[1748859532118,7.10627011,2481.5,2481.1,9.02045938]
[1748859532272,7.10627011,2481.5,2481.2,4.0302265]
[1748859532672,7.10627011,2481.5,2481.1,4.99]
[1748859532917,7.10627011,2481.5,2481.1,4.976]
[1748859533069,7.10627011,2481.5,2481.1,9.0064676]
[1748859533269,7.10627011,2481.5,2481.2,4.03028481]